Cogmind - Beta 13 X2 @@@ ROGUE MODE // 2023.12.23 @ 13:48:19 Player: f3-rnm Result: Destroyed by 3B-31C(R) with Subdweller Machine Gun Performance ------------- Evolutions (0) 0 Regions Visited (2) 400 Robots Destroyed (23) 115 Value Destroyed (463) 463 Prototype IDs (0) 0 Alien Tech Used (0) 0 Bonus (0) 0 TOTAL SCORE: 978 Bonus ------- None Cogmind --------- Core Integrity 0/250 Matter 188/300 Energy 100/100 System Corruption 0% Temperature Cool (0) Movement Treading (160) Location -10/Subcaves Parts ------- > --- POWER (1) -------- (None) > --- PROPULSION (2) --- Spiked Treads > --- UTILITY (2) ------ Core Shielding > --- WEAPON (2) ------- Light Assault Rifle Subdweller Machine Gun > --- INVENTORY (5) ---- High-capacity Matter Pod (163) Particle Cannon Mini Grenade Launcher Ripper Peak State ------------ > --- POWER ------------ Ion Engine > --- PROPULSION ------- Light Treads Light Treads > --- UTILITY ---------- Small Storage Unit Hardened Light Armor Plating > --- WEAPON ----------- Particle Cannon Light Assault Rifle > --- INVENTORY -------- Light Ion Engine Wheel Hardened Light Armor Plating Hardened Light Armor Plating Small Laser Particle Cannon Mini Grenade Launcher Mini Grenade Launcher [Rating: 10] Favorites ----------- Power Ion Engine Engine Ion Engine Propulsion Light Treads Treads Light Treads Wheel Wheel Utility Hardened Light Armor Plating Storage Small Storage Unit Protection Hardened Light Armor Plating Weapon Light Assault Rifle Energy Gun Small Laser Energy Cannon Particle Cannon Ballistic Gun Light Assault Rifle Launcher Mini Grenade Launcher Build | -11 -10 -10 ------- Run | Yrd Mat Sub Slots Evolved . | . . . Power . | . . . Propulsion . | . . . Utility . | . . . Weapon . | . . . Parts Attached 20 | 6 3 11 Power 2 | 1 . 1 Engine 2 | 1 . 1 Core . | . . . Reactor . | . . . Propulsion 4 | 2 . 2 Treads 3 | 2 . 1 Leg . | . . . Wheel 1 | . . 1 Hover . | . . . Flight . | . . . Utility 5 | 1 2 2 Device . | . . . Storage 2 | 1 1 . Processor . | . . . Hackware . | . . . Protection 3 | . 1 2 Artifact . | . . . Weapon 9 | 2 1 6 Energy Gun 1 | 1 . . Energy Cannon 2 | . 1 1 Ballistic Gun 5 | 1 . 4 Ballistic Cannon . | . . . Launcher 1 | . . 1 Special Weapon . | . . . Impact Weapon . | . . . Slashing Weapon . | . . . Piercing Weapon . | . . . Special Melee Weapon . | . . . Unidentified Prototypes . | . . . Parts Lost 8 | . . 8 Power 2 | . . 2 Propulsion 3 | . . 3 Utility 2 | . . 2 Weapon 1 | . . 1 Highest Loss Streak 2 | . . 2 To Critical Strikes . | . . . Average Slot Usage (%) 92 | . 99 85 Engine 13 | . 14 13 Treads 20 | . 28 12 Wheel 2 | . . 4 Storage 7 | . 14 . Protection 19 | . 13 25 Energy Cannon 11 | . 12 9 Ballistic Gun 15 | . 14 16 Naked Turns . | . . . Heaviest Build 35 | 12 35 35 Greatest Support 40 | 40 40 40 Greatest Overweight (x) 3 | . . 3 Average Overweight (x) . | . . . Largest Inventory Capacity 15 | 8 15 15 Average Capacity 7 | 6 10 5 Most Carried 10 | 4 10 10 Average Carried 6 | 1 8 4 Final Capacity 15 | 8 15 5 Final Carried 10 | 2 10 4 Class Distribution -------------------- 100% | Mutant Dominant Class ---------------- Mutant | -10/Materials Mutant | -10/Subcaves Resources | -11 -10 -10 ----------- Run | Yrd Mat Sub Matter Collected 603 | 261 97 245 Remotely . | . . . Salvage Created 493 | . 187 306 Parts 41 | . 21 20 Haulers Intercepted 1 | . 1 . Recyclers Shooed . | . . . Parts Field Recycled . | . . . Retrieved Matter . | . . . Parts Self-Destructed 8 | . . 8 Prevented . | . . . Kills | -11 -10 -10 ------- Run | Yrd Mat Sub Combat Hostiles Destroyed 21 | . 9 12 Melee 1 | . 1 . Guns 6 | . 4 2 Cannons 9 | . 4 5 AOE 5 | . . 5 Classes Destroyed 6 | . 3 3 Builder 1 | . 1 . Hauler 1 | . 1 . Swarmer 13 | . 9 4 Grunt 2 | . . 2 Sentry 1 | . . 1 Subdweller 5 | . . 5 Best Kill Streak 5 | . 3 5 Combat Bots Only 5 | . 3 5 Max Kills in Single Turn 4 | . 1 4 Gunslinging . | . . . Exploded 4 | . . 4 Melee 1 | . 1 . Uniques/NPCs Destroyed . | . . . Combat | -11 -10 -10 -------- Run | Yrd Mat Sub Hostile Shots Fired 142 | . 49 93 Missed 41 | . 11 30 Damage Taken 1560 | . 283 1277 Core 255 | . 48 207 Absorbed by Shields . | . . . Redirected to Shielding 45 | . . 45 Core Remaining (%) 100 | 100 . . Volleys Fired 92 | 1 33 58 Largest 2 | 2 2 2 Hottest 88 | 60 88 88 Shots Fired 165 | 2 57 106 Gun 96 | 2 25 69 Cannon 63 | . 32 31 Launcher 6 | . . 6 Special . | . . . Kinetic 95 | 1 25 69 Thermal 64 | 1 32 31 Explosive 6 | . . 6 Electromagnetic . | . . . Robot Hit Streak 16 | . 9 16 Robot Miss Streak 2 | . 2 2 Penetration Max . | . . . Secondary Targets . | . . . Shots Hit Robots 105 | . 34 71 Core Hits 34 | . 13 21 Critical Kills . | . . . Critical Parts Destroyed 1 | . 1 . Critical Strikes 1 | . 1 . Destroy 1 | . 1 . Melee Attacks . | . . . Impact . | . . . Slashing . | . . . Piercing . | . . . Sneak Attacks . | . . . Combat Hostiles . | . . . Follow-up Attacks . | . . . Damage Inflicted 1952 | . 539 1413 Guns 594 | . 123 471 Cannons 902 | . 408 494 Explosions 448 | . . 448 Melee . | . . . Ramming 8 | . 8 . Kinetic 594 | . 123 471 Thermal 902 | . 408 494 Explosive 448 | . . 448 Electromagnetic . | . . . Impact . | . . . Slashing . | . . . Piercing . | . . . Highest Corruption . | . . . Average Corruption . | . . . Corruption Purged . | . . . Corruption Blocked . | . . . Overload Shots . | . . . Overflow Damage 19 | . 8 11 Projectiles 8 | . 8 . Explosions 11 | . . 11 Melee . | . . . Knockbacks . | . . . Impact . | . . . Kinetic . | . . . Secondary . | . . . Self-Inflicted Damage 64 | . . 64 Shots 2 | . . 2 Rammed 2 | . 2 . Targets Rammed 3 | . 3 . Kicked . | . . . Crushed 1 | . 1 . Highest Temperature 273 | 20 273 73 Average Temperature 87 | 10 114 21 Received Heat Transfer 327 | . . 327 Effects 2 | . 2 . Energy Bleed 2 | . 2 . Siege Activations . | . . . Robots Corrupted . | . . . Combat Hostiles . | . . . Parts Fried . | . . . Impact Corruptions . | . . . Robots Melted . | . . . Combat Hostiles . | . . . Parts Melted . | . . . Heat Transferred 1628 | . 740 888 Parts Sabotaged . | . . . Parts Stolen . | . . . Parts Stripped . | . . . Power Chain Reactions . | . . . Missiles Intercepted . | . . . Alert | -11 -10 -10 ------- Run | Yrd Mat Sub Peak Influence 161 | . 161 . Initial . | . . . Average 43 | . 46 . Maximum Alert Level . | . . . Low Security (%) 100 | 100 100 . Level 1 . | . . . Level 2 . | . . . Level 3 . | . . . Level 4 . | . . . Level 5 . | . . . High Security . | . . . Max Security . | . . . Squads Dispatched . | . . . Investigation . | . . . Extermination . | . . . Reinforcement . | . . . Assault . | . . . Garrison . | . . . Intercept . | . . . Searches Triggered . | . . . Construction Impeded . | . . . Haulers Reinforced . | . . . Active Scanning Responses . | . . . Cargo Convoy Interrupts . | . . . Stealth | -11 -10 -10 --------- Run | Yrd Mat Sub Distress Signals . | . . . Communications Jammed . | . . . Distress Signals . | . . . Times Spotted 35 | . 14 21 Peak Tracking Total 6 | . 4 6 Tactical Retreats 2 | . . 2 Traps | -11 -10 -10 ------- Run | Yrd Mat Sub Traps Triggered . | . . . Indirectly . | . . . Trap Hack Attempts . | . . . Triggered . | . . . Disarmed . | . . . Reprogrammed . | . . . Reused . | . . . Traps Extracted . | . . . Installed . | . . . Triggered . | . . . Machines | -11 -10 -10 ---------- Run | Yrd Mat Sub Machines Disabled . | . . . Max in Single Turn . | . . . Machines Repaired . | . . . Machines Dismantled . | . . . Machines Sabotaged . | . . . Overloaded Fab Kills . | . . . Hacking | -11 -10 -10 --------- Run | Yrd Mat Sub Machines Accessed 2 | . 2 . Terminals 2 | . 2 . Fabricators . | . . . Repair Stations . | . . . Recycling Units . | . . . Scanalyzers . | . . . Garrison Access . | . . . Total Hacks 4 | . 4 . Successful 2 | . 2 . Failed 2 | . 2 . Catastrophic 1 | . 1 . Database Lockouts . | . . . Manual 2 | . 2 . Terminals 4 | . 4 . Fabricators . | . . . Repair Stations . | . . . Recycling Units . | . . . Scanalyzers . | . . . Garrison Access . | . . . Terminal Hacks 2 | . 2 . Robot Analysis 2 | . 2 . Fabricator Hacks . | . . . Repair Station Hacks . | . . . Recycling Unit Hacks . | . . . Scanalyzer . | . . . Garrison Access Hacks . | . . . Unauthorized Hacks . | . . . Terminals . | . . . Fabricators . | . . . Repair Stations . | . . . Recycling Units . | . . . Scanalyzers . | . . . Garrison Access . | . . . Data Cores Recovered . | . . . Used . | . . . Hacking Detections 1 | . 1 . Full Trace Events . | . . . Feedback Events . | . . . Feedback Blocked . | . . . Robot Schematics Acquired . | . . . Robots Built . | . . . Authchips . | . . . Time . | . . . Total Robot Build Rating . | . . . Part Schematics Acquired . | . . . Parts Built . | . . . Authchips . | . . . Time . | . . . Total Part Build Rating . | . . . Parts Repaired . | . . . Time . | . . . Parts Recycled . | . . . Recycled Matter . | . . . Retrieved Matter . | . . . Retrieved Components . | . . . Parts Scanalyzed . | . . . Part Schematics Acquired . | . . . Parts Damaged . | . . . Bothacking | -11 -10 -10 ------------ Run | Yrd Mat Sub Used RIF Installer . | . . . Robots Hacked . | . . . Non-combat . | . . . Combat . | . . . Robot Hacks Applied . | . . . Relay Couplers Released . | . . . Fabnet Peak Effective % . | . . . Robots Rewired . | . . . Allies Hacked . | . . . Hacks Repelled . | . . . Allies | -11 -10 -10 -------- Run | Yrd Mat Sub Total Allies . | . . . Largest Group . | . . . Highest-Rated Group . | . . . Highest-Rated Ally . | . . . Total Orders . | . . . Ally Attacks . | . . . Total Damage . | . . . Kills . | . . . Allies Corrupted . | . . . Allies Melted . | . . . Intel | -11 -10 -10 ------- Run | Yrd Mat Sub Robot Analysis Total 2 | . 2 . Derelict Logs Recovered . | . . . Drone Launches . | . . . Drone Recoveries . | . . . Exploration | -11 -10 -10 ------------- Run | Yrd Mat Sub Turns Passed 2092 | 72 1053 967 Spaces Moved 1022 | 42 368 612 Core 65 | 10 . 55 Treads 659 | 32 368 259 Legs . | . . . Wheels 298 | . . 298 Hover . | . . . Flight . | . . . Fastest Speed 50 | 50 160 95 Average Speed 139 | 133 160 127 Slowest Speed 200 | 160 160 200 Overloaded Moves . | . . . Propulsion Burnouts . | . . . Robots Hopped . | . . . Cave-ins Triggered . | . . . Exploration Rate (%) 33 | 3 60 38 Regions Visited 2 Branch Regions 1 Pre-discovered Areas 1 | . . 1 Known Exits Taken . | . . . Unknown Exits Taken 2 | 1 1 . Scrap Searched . | . . . Spaces Dug . | . . . Terrain Destroyed 47 | . . 47 Melee . | . . . Projectile . | . . . AOE 47 | . . 47 Terrain Rammed . | . . . Walls Destroyed . | . . . Machines Disabled . | . . . Actions | -11 -10 -10 --------- Run | Yrd Mat Sub Total 1534 | 56 779 699 Wait 369 | . 361 8 Move 1020 | 41 367 612 Hop . | . . . Pick Up 25 | 8 10 7 Fast Attach . | . . . Attach 14 | 6 1 7 Detach . | . . . Swap 6 | . 2 4 Drop 5 | . 2 3 Fire 92 | 1 33 58 Melee . | . . . Ram . | . . . Kick . | . . . Crush 3 | . 3 . Escape Stasis . | . . . Rewire . | . . . Trap . | . . . Miscellaneous . | . . . Route ------- -11/Scrapyard -10/Materials (discovered 3 exits: [*Mat x2] / [*Sub]) -10/Subcaves History --------- Turn | Location | Event 6 | -11/Scrapyard | Discovered new exit (range 16) 73 | -11/Scrapyard | Entered Materials 211 | -10/Materials | Discovered new exit (range 8) 311 | -10/Materials | Build established: Mutant 719 | -10/Materials | Discovered new exit (range 14) 1106 | -10/Materials | Discovered new exit (range 4) 1126 | -10/Materials | Entered Subcaves 1223 | -10/Subcaves | Learned location of Zion (-7) 1223 | -10/Subcaves | Met a Zionite searching for "candidates" 1491 | -10/Subcaves | Core integrity fell below 50% 1913 | -10/Subcaves | Core integrity fell below 20% 1987 | -10/Subcaves | Shifting Twisted Machinery released Spk. Treads 2053 | -10/Subcaves | Shifting Twisted Machinery released Ripper 2093 | -10/Subcaves | Destroyed by 3B-31C(R) with Subdweller Machine Gun Last Messages --------------- 01878_ HJ-GSN(R) destroyed. 01892_ S-10 Pest destroyed. 01903_ Lgt. Assault Rifle fries itself beyond repair. 01909_ The unstable cave ceiling collapses. 01909_ Wheel destroyed. 01909_ Destroyed Wheel. 01911_ Destroyed Sub. Monowheel. 01913_ 9P-ASL(R) destroyed. 01913_ Hrd. Light Armor Plating destroyed. 01913_ Destroyed Hrd. Light Armor Plating. 01934_ The unstable cave ceiling collapses. Spk. Treads falls loose from the Twisted Machinery. 02011_ Acquired Spk. Treads. 02028_ Hvy. Assault Rifle destroyed. 02046_ Lgt. Ion Engine destroyed. 02050_ MK-S39(R) destroyed. Ripper falls loose from the Twisted Machinery. 02062_ Acquired 36 matter. 02068_ Acquired Ripper. 02077_ Acquired 39 matter. Map ----- +----------------------------------------------------+ | ????????????????????????????????????????????????## | | ????????????????????????????????????????????????# | | ????????????????????????????????????????????????# | | ????????????????????????????????????????????????# | | ????????????????????????????????????????????????## | | ?????????????????????????????????????????????????# | | ?????????????????????????????????????????????????# | | ????????????????????????????????????????????????## | | ????????????????????????????????????????????????# | | ????????????????????????????????????????????????# | | ????????????????????????????????????????????????# | | ????????????????????????????????????????????????# | | ????????????????????????????????????????????????# | | ????????????????????????????????????????????????# | | ????????????????????????????????????????????????## | | ????????????????????????????????????????????????## | | ??????????????#?????????????????????????????????# | | ??????????????#"????????????????????????????????## | | ??????????????#" ????????????????????????????????# | | ??????????????? ???????????????????????????????# | | ????????????????? ??????????????????????????????? | | ?????????????##???# ############?????????????????? | | ?????????????? %??# # # ## #?????????????????? | | ?????????????## ## """"" ##????????????????? | | ?????????????# # R""" #????????????????? | | ??????????????#%# ##### @#!"" ##????????????????? | | ??????????????# ## #### """###??????????????? | | ????????????????# # ##?##*""""#??????????????? | | ????????????????## #??#" " ""????????????? | | ????????????????# # ##??#""## " ??????????"" | | ????????????????## # #??? """??## #?????????"" | | ????????????????## ##" #???""""#????? ????????" | | ???????????????## "##"" ##??""" ???????????????? | | ??????????????## """ "" #??#" ??????????????? | | ??????????##### ""#??????? ???????????????" | | ??????????#" #### "#??????????????????????? | | ????#######" ####???###???????????????????????? | | ??### # ## ##???????###??????????????????????? | | ?## ### "##????##### #??????????????????????? | | ## # ## ####### ## ##??????????????????? | | # # " # ## #??????????????????? | | # " #??????????????????? | | & """ ## #??????????????????? | | & # ### ###### #??????????????????? | | # # ## #### ##???? #??????????????????? | | #### ## ## ### ##??????????????????? | | ## # ### ##???????????????????? | | " " ### ##??###????????????????????? | | " ##?# #??????????????????????????? | | ] ##??## #### ##??????????????????????????? | +----------------------------------------------------+ Best States ------------- Heat Dissipation 25 Energy Generation 10 Energy Capacity 250 Matter Stores 300 Matter Capacity 300 Sight Range 16 Terrain Scan Density 10 Armor Coverage 150 Core Shielding 20 Evasion (%) 50 Recoil Reduction 2 Item Schematics ----------------- None Robot Schematics ------------------ None Fabricated ------------ Nothing Alien Tech Used ----------------- None Achievements -------------- None Challenges ------------ None Game ------ Seed MultinovaHackingChronowheel Manual? 0 Play Time 00:13:02 Cumulative 129.8 hours Start 2023.12.23 @ 13:35:28 End 2023.12.23 @ 13:48:19 Sessions 1 Manual Loads 0 Difficulty Rogue Special Mode None Game No. 144 Rogue 108 Adventurer 36 Explorer 0 Win Type - Total 8 Types 2/0/6/0/0/0/0/0/0 Lore% 53 Gallery% 76 Achievement% 62 Wizard Run 0 Options --------- ASCII 0 Keyboard 0 Movement Mouse Keybinds 0 Fullscreen 1 Font 18/SmallcapsGlow Map View 76x50 Zoom Use 0% Tactical HUD 1 Map Filters NONE Filters NONE Steam 1 RUN: 7e7a2a15-f950-4bc0-ad00-6dea02046d9f